Cogmind - Beta 17.1 @@@ ROGUE MODE // 2026.09.04 @ 19:51:00 Player: frazz Result: Destroyed by as-77943 with Assembled Maul Performance ------------- Evolutions (0) 0 Regions Visited (2) 400 Robots Destroyed (6) 30 Value Destroyed (118) 118 Prototype IDs (0) 0 Alien Tech Used (0) 0 Bonus (0) 0 TOTAL SCORE: 548 Bonus ------- None Cogmind --------- Core Integrity 0/250 Matter 275/300 Energy 80/250 System Corruption 0% Temperature Cool (0) Movement Walking (190) Ox1 Location -10/Mines Parts ------- > --- POWER (1) -------- Ion Engine > --- PROPULSION (2) --- Aluminum Leg > --- UTILITY (2) ------ Small Storage Unit > --- WEAPON (2) ------- Particle Gun Light Assault Rifle > --- INVENTORY (8) ---- Aluminum Leg Assault Rifle Peak State ------------ > --- POWER ------------ Ion Engine > --- PROPULSION ------- Aluminum Leg Aluminum Leg > --- UTILITY ---------- Small Storage Unit Improved Terrain Scanner > --- WEAPON ----------- Medium Laser Light Assault Rifle > --- INVENTORY -------- Ion Engine Assault Rifle [Rating: 9] Favorites ----------- Power Ion Engine Engine Ion Engine Propulsion Aluminum Leg Leg Aluminum Leg Utility Small Storage Unit Device Improved Terrain Scanner Storage Small Storage Unit Weapon Light Assault Rifle Energy Gun Medium Laser Ballistic Gun Light Assault Rifle Build | -11 -10 -10 ------- Run | Yrd Mat Min Slots Evolved . | . . . Power . | . . . Propulsion . | . . . Utility . | . . . Weapon . | . . . Parts Attached 12 | 7 . 5 Power 3 | 1 . 2 Engine 3 | 1 . 2 Core . | . . . Reactor . | . . . Propulsion 4 | 2 . 2 Treads . | . . . Leg 4 | 2 . 2 Wheel . | . . . Hover . | . . . Flight . | . . . Utility 2 | 2 . . Device 1 | 1 . . Storage 1 | 1 . . Processor . | . . . Hackware . | . . . Protection . | . . . Artifact . | . . . Weapon 3 | 2 . 1 Energy Gun 2 | 1 . 1 Energy Cannon . | . . . Ballistic Gun 1 | 1 . . Ballistic Cannon . | . . . Launcher . | . . . Special Weapon . | . . . Impact Weapon . | . . . Slashing Weapon . | . . . Piercing Weapon . | . . . Special Melee Weapon . | . . . Unidentified Prototypes . | . . . Parts Lost 7 | . . 7 Power 2 | . . 2 Propulsion 3 | . . 3 Utility 1 | . . 1 Weapon 1 | . . 1 Highest Loss Streak 7 | . . 7 To Critical Strikes . | . . . Average Backups 3 | 1 2 6 Power 1 | . 1 1 Propulsion . | . . 2 Utility . | . . . Weapon 1 | . 1 1 Tool/Special . | . . . Unused Backups 2 | . . 2 Power . | . . . Propulsion 1 | . . 1 Utility . | . . . Weapon 1 | . . 1 Tool/Special . | . . . Average Slot Usage (%) 99 | . 100 95 Engine 14 | . 14 14 Leg 27 | . 28 26 Device 13 | . 14 11 Storage 14 | . 14 14 Energy Gun 14 | . 14 14 Ballistic Gun 14 | . 14 14 Peak Build Rating 9 | 9 9 9 Average Rating 8 | 5 9 8 On Entrance 6 | . 9 9 Avg Prop Armor Cover (%) . | . . . Naked Turns . | . . . Heaviest Build 14 | 14 14 14 Greatest Support 20 | 20 20 20 Greatest Overweight (x) 2 | . . 2 Average Overweight (x) . | . . . Largest Inventory Capacity 8 | 8 8 8 Average Capacity 7 | 6 8 8 Most Carried 7 | 3 7 7 Average Carried 3 | 1 2 6 Final Capacity 8 | 8 8 8 Final Carried 7 | 2 7 2 Class Distribution -------------------- 100% | Mutant Dominant Class ---------------- Mutant | -10/Materials Mutant | -10/Mines Resources | -11 -10 -10 ----------- Run | Yrd Mat Min Matter Collected 287 | 255 32 . Remotely . | . . . Salvage Created 172 | 29 143 . Parts 12 | 1 11 . Haulers Intercepted . | . . . Recyclers Shooed . | . . . Parts Field Recycled . | . . . Retrieved Matter . | . . . Parts Self-Destructed . | . . . Prevented . | . . . Parts Restored . | . . . Kills | -11 -10 -10 ------- Run | Yrd Mat Min Combat Hostiles Destroyed 5 | . 5 . Guns 5 | . 5 . Classes Destroyed 3 | 1 2 . Tunneler 1 | 1 . . Swarmer 3 | . 3 . Grunt 2 | . 2 . Best Kill Streak 3 | 1 3 . Combat Bots Only 3 | . 3 . Max Kills in Single Turn 1 | 1 1 . Gunslinging . | . . . Exploded . | . . . Melee . | . . . Uniques/NPCs Destroyed . | . . . Combat | -11 -10 -10 -------- Run | Yrd Mat Min Hostile Shots Fired 88 | . 23 65 Missed 22 | . 5 17 Hits 66 | . 18 48 Melee 7 | . . 7 Projectile 59 | . 18 41 Critical Strikes 1 | . . 1 Damage Taken 896 | . 163 733 Core 254 | . 8 246 Absorbed by Shields . | . . . Core Remaining (%) 100 | 100 . . Volleys Fired 17 | 7 10 . Largest 2 | 2 2 . Hottest 70 | 70 70 . Shots Fired 34 | 14 20 . Gun 34 | 14 20 . Cannon . | . . . Launcher . | . . . Special . | . . . Kinetic 17 | 7 10 . Thermal 17 | 7 10 . Explosive . | . . . Electromagnetic . | . . . Robot Hit Streak 5 | 5 5 . Robot Miss Streak 2 | 2 2 . Penetration Max . | . . . Secondary Targets . | . . . Shots Hit Robots 21 | 9 12 . Core Hits 11 | 2 9 . Critical Kills . | . . . Critical Parts Destroyed . | . . . Critical Strikes 2 | . 2 . Burn 2 | . 2 . Melee Attacks . | . . . Impact . | . . . Slashing . | . . . Piercing . | . . . Sneak Attacks . | . . . Combat Hostiles . | . . . Follow-up Attacks . | . . . Damage Inflicted 241 | 119 122 . Guns 241 | 119 122 . Cannons . | . . . Explosions . | . . . Melee . | . . . Ramming . | . . . Kinetic 102 | 44 58 . Thermal 139 | 75 64 . Explosive . | . . . Electromagnetic . | . . . Impact . | . . . Slashing . | . . . Piercing . | . . . Highest Corruption . | . . . Average Corruption . | . . . Corruption Purged . | . . . Corruption Blocked . | . . . Overload Shots . | . . . Overflow Damage . | . . . Projectiles . | . . . Explosions . | . . . Melee . | . . . Knockbacks . | . . . Impact . | . . . Kinetic . | . . . Secondary . | . . . Self-Inflicted Damage . | . . . Shots . | . . . Rammed . | . . . Targets Rammed . | . . . Kicked . | . . . Crushed . | . . . Highest Temperature 100 | 70 100 20 Average Temperature 34 | 29 41 8 Received Heat Transfer 175 | . 15 160 Siege Activations . | . . . Martial Activations . | . . . Shielding Activations . | . . . Robots Disrupted . | . . . Combat Hostiles . | . . . Robots Corrupted . | . . . Combat Hostiles . | . . . Parts Fried . | . . . Impact Corruptions . | . . . Robots Melted . | . . . Combat Hostiles . | . . . Parts Melted 1 | . 1 . Heat Transferred 555 | 222 333 . Parts Sabotaged . | . . . Parts Stolen . | . . . Parts Stripped . | . . . Power Chain Reactions . | . . . Alert | -11 -10 -10 ------- Run | Yrd Mat Min Maximum Alert Level . | . . . Low Security (%) 100 | 100 100 100 Level 1 . | . . . Level 2 . | . . . Level 3 . | . . . Level 4 . | . . . Level 5 . | . . . High Security . | . . . Max Security . | . . . Peak Influence 80 | 5 80 24 Initial 24 | . . 24 Average 7 | . 8 8 Influence Increases 125 | 5 120 . Destroy 0b10 Robot/C 100 | . 100 . Destroy 0b10 Robot/NC 5 | 5 . . Destroy Leader 20 | . 20 . Influence Decreases 125 | 5 56 64 Entered New Map 40 | . . 40 Time Decay 85 | 5 56 24 Squads Dispatched . | . . . Investigation . | . . . Extermination . | . . . Reinforcement . | . . . Assault . | . . . Garrison . | . . . Intercept . | . . . Searches Triggered . | . . . Construction Impeded . | . . . Haulers Reinforced . | . . . Active Scanning Responses . | . . . Cargo Convoy Interrupts . | . . . Stealth | -11 -10 -10 --------- Run | Yrd Mat Min Distress Signals . | . . . Communications Jammed . | . . . Distress Signals . | . . . Times Spotted 25 | . 5 20 Peak Tracking Total 20 | . 3 20 Tactical Retreats 1 | . . 1 Traps | -11 -10 -10 ------- Run | Yrd Mat Min Traps Triggered . | . . . Indirectly . | . . . Trap Hack Attempts . | . . . Triggered . | . . . Disarmed . | . . . Reprogrammed . | . . . Reused . | . . . Traps Extracted . | . . . Installed . | . . . Triggered . | . . . Machines | -11 -10 -10 ---------- Run | Yrd Mat Min Machines Disabled . | . . . Max in Single Turn . | . . . Machines Repaired . | . . . Machines Dismantled . | . . . Machines Sabotaged . | . . . Overloaded Fab Kills . | . . . Hacking | -11 -10 -10 --------- Run | Yrd Mat Min Machines Accessed 3 | . 3 . Terminals 3 | . 3 . Fabricators . | . . . Repair Stations . | . . . Recycling Units . | . . . Scanalyzers . | . . . Garrison Access . | . . . Total Hacks 8 | . 8 . Successful 2 | . 2 . Failed 6 | . 6 . Catastrophic 2 | . 2 . Database Lockouts . | . . . Manual 2 | . 2 . Terminals 8 | . 8 . Fabricators . | . . . Repair Stations . | . . . Recycling Units . | . . . Scanalyzers . | . . . Garrison Access . | . . . Terminal Hacks 2 | . 2 . Dispatch Records 1 | . 1 . Zone Layout 1 | . 1 . Fabricator Hacks . | . . . Repair Station Hacks . | . . . Recycling Unit Hacks . | . . . Scanalyzer . | . . . Garrison Access Hacks . | . . . Unauthorized Hacks . | . . . Terminals . | . . . Fabricators . | . . . Repair Stations . | . . . Recycling Units . | . . . Scanalyzers . | . . . Garrison Access . | . . . Data Cores Recovered . | . . . Used . | . . . Hacking Detections 3 | . 3 . Full Trace Events 1 | . 1 . Feedback Events . | . . . Feedback Blocked . | . . . Robot Schematics Acquired . | . . . Robots Built . | . . . Authchips . | . . . Time . | . . . Total Robot Build Rating . | . . . Part Schematics Acquired . | . . . Parts Built . | . . . Authchips . | . . . Time . | . . . Total Part Build Rating . | . . . Part Studies Acquired . | . . . Parts Repaired . | . . . Time . | . . . Parts Recycled . | . . . Recycled Matter . | . . . Retrieved Matter . | . . . Retrieved Components . | . . . Parts Scanalyzed . | . . . Part Schematics Acquired . | . . . Parts Damaged . | . . . Bothacking | -11 -10 -10 ------------ Run | Yrd Mat Min Used RIF Installer . | . . . Robots Hacked . | . . . Non-combat . | . . . Combat . | . . . Robot Hacks Applied . | . . . Relay Couplers Released . | . . . Fabnet Peak Effective % . | . . . Robots Rewired . | . . . Allies Hacked . | . . . Hacks Repelled . | . . . Allies | -11 -10 -10 -------- Run | Yrd Mat Min Total Allies . | . . . Largest Group . | . . . Highest-Rated Group . | . . . Highest-Rated Ally . | . . . Total Orders . | . . . Ally Attacks . | . . . Total Damage . | . . . Kills . | . . . Allies Corrupted . | . . . Allies Melted . | . . . Intel | -11 -10 -10 ------- Run | Yrd Mat Min Active Infowar (turns) 715 | 22 620 73 Terrain 715 | 22 620 73 Robot Analysis Total . | . . . Derelict Logs Recovered . | . . . Drone Launches . | . . . Drone Recoveries . | . . . Exploration | -11 -10 -10 ------------- Run | Yrd Mat Min Turns Passed 838 | 116 620 102 Spaces Moved 389 | 70 266 53 Core 7 | 6 . 1 Treads . | . . . Legs 382 | 64 266 52 Wheels . | . . . Hover . | . . . Flight . | . . . Fastest Speed 50 | 50 120 120 Average Speed 119 | 114 120 123 Slowest Speed 190 | 120 120 190 Overloaded Moves . | . . . Propulsion Burnouts . | . . . Robots Hopped . | . . . Potential Cave-ins . | . . . Cave-ins Triggered . | . . . Exploration Rate (%) 19 | 4 34 20 Regions Visited 2 Branch Regions 1 Pre-discovered Areas . | . . . Known Exits Taken . | . . . Unknown Exits Taken 2 | 1 1 . Scrap Searched . | . . . Spaces Dug . | . . . Terrain Destroyed . | . . . Melee . | . . . Projectile . | . . . AOE . | . . . Terrain Rammed . | . . . Walls Destroyed . | . . . Machines Disabled . | . . . Actions | -11 -10 -10 --------- Run | Yrd Mat Min Total 731 | 93 549 89 Wait 301 | 1 269 31 Move 387 | 69 265 53 Hop . | . . . Pick Up 14 | 9 5 . Fast Attach . | . . . Attach 12 | 7 . 5 Detach . | . . . Swap . | . . . Drop . | . . . Fire 17 | 7 10 . Melee . | . . . Ram . | . . . Kick . | . . . Crush . | . . . Escape Stasis . | . . . Rewire . | . . . Trap . | . . . Miscellaneous . | . . . Route ------- -11/Scrapyard -10/Materials (discovered 2 exits: [*Mat] / [*Min]) -10/Mines History --------- Turn | Location | Event 3 | -11/Scrapyard | Discovered new exit (range 16) 117 | -11/Scrapyard | Entered Materials 308 | -10/Materials | Build established: Mutant 662 | -10/Materials | Discovered new exit (range 4) 731 | -10/Materials | Discovered new exit (range 6) 737 | -10/Materials | Entered Mines 795 | -10/Mines | Assembled infested the area 834 | -10/Mines | Core integrity fell below 50% 838 | -10/Mines | Core integrity fell below 20% 839 | -10/Mines | Destroyed by as-77943 with Assembled Maul Last Messages --------------- EXIT=FOUND LOCATION=UNKNOWN GOAL=ESCAPE Something is scanning the area. ALERT: Infestation in the mines, dispatching Demolisher response squad. T-07 Excavator destroyed. [Achievement: Hunted] Aluminum Leg destroyed. Imp. Terrain Scanner destroyed. Knocked back. as-12201 destroyed. Ion Engine destroyed. Knocked back. T-07 Excavator is excavating. Med. Laser destroyed. T-07 Excavator is excavating. Aluminum Leg destroyed. Ion Engine destroyed. T-07 Excavator is excavating. Map ----- +----------------------------------------------------+ | | | | | | | | | | | | | | | | | | | | | | | | | | | | | ????????????????????????????????????????? | | ????????????????????????????????????????? | | ????????????????????????????????????????? | | ????????????????????????????????????????? | | ???????????????????####?????????????????? | | ??????????????????## #?????????????????? | | ?????????????????## #?????????????????? | | ????????????????## #??????????????????? | | ???????????????## #####??????????????? | | ??????????????## a ##????#????????? | | ?????????????## aa a #?????????????? | | ?????????????# @a aa #??????????#?#? | | ???????????# ###a a ######????????? | | ?????????# ##?## ## ##?###???? | | ?????????# t #???## ## ##??? | | ?????????# ## ????# #??? | | ?????????#??# ????# """" % #??# | | ????????????# ? """" ## #??? | | ????????????#? ### """" ##### #??? | | ?????????????????# #??## ##??? | | ????????????????# ### ###???? | | ???????????????? ## ##?????? | | ???????????????# #?## ######## | | ???????????????## ##???## = | | ????????????????#?##??????## |%* ######## | | ???????????????????????????# # #??????? | | ???????????????????????????# # #??????? | | ???????????????????????????# ? ????? | | ??????????????????????????? ????? ? | | ?????????????????????????? =%!??????? | | ????????????????????????? ??????? | | ???????????????????????? ??????# | | ??????????????????????? ??????? | | ??????????????????????# ??????? | | ???????????????????????? *%= ??????? | | ???????????????????????? ! ??????? | +----------------------------------------------------+ Best States ------------- Heat Dissipation 25 Energy Generation 10 Energy Capacity 250 Matter Stores 300 Matter Capacity 300 Sight Range 16 Terrain Scan Range 16 Terrain Scan Density 10 Evasion (%) 55 Item Schematics ----------------- None Robot Schematics ------------------ None Fabricated ------------ Nothing Repaired ---------- Nothing Studied --------- None Alien Tech Used ----------------- None Achievements -------------- Hunted Challenges ------------ None Game ------ Seed ChipTeslaPenetrator Manual? 0 Play Time 00:06:37 Cumulative 16.0 hours Start 2026.09.04 @ 19:45:24 End 2026.09.04 @ 19:51:00 Sessions 1 Manual Loads 0 Difficulty Rogue Special Mode None Game No. 21 Rogue 19 Adventurer 2 Explorer 0 Win Type - Total 0 Types 0/0/0/0/0/0/0/0/0/0 Lore% 14 Gallery% 18 Achievement% 17 Wizard Run 0 Options --------- Layout 1 ASCII 1 Keyboard 0 Movement Numpad Keybinds 0 Fullscreen 2 Font 24/Smallcaps Map View 50x35 Zoom Use 0% Tactical HUD 0 Map Filters NONE Filters NONE Steam 1 RUN: 99b49d59-bf72-487e-b94b-19ccb49104ba